lending/lending_fUSD_20260328
["ID","MTS","AMOUNT","RATE_DAILY","PERIOD"]
[418966424,1774681840776,-587.37,0.00014892,2]
[418966425,1774681840785,-152.0,0.00014898,3]
[418966426,1774681840794,-1400.0,0.000149,5]
[418966427,1774681840803,-557.02639081,0.00014912,2]
[418966428,1774681840812,-1651.8210284,0.00014966,2]
[418966429,1774681840820,-150.0,0.00014978,2]
[418966430,1774681840830,-150.0,0.00014978,2]
[418966431,1774681840839,-557.02639081,0.00015109,2]
[418966432,1774681840848,-159.0980215,0.00015176,2]
[418966433,1774681840857,-1651.8210284,0.00015199,2]
[418966434,1774681840866,-1692.08578811,0.00015299,2]
[418966435,1774681840875,-152.835,0.000153,2]
[418966436,1774681840884,-2761.966,0.000153,2]
[418966437,1774681840893,-5000.0,0.000153,2]
[418966438,1774681840902,-557.02639081,0.00015307,2]
[418966439,1774681840911,-1692.08578811,0.00015366,2]
[418966440,1774681840920,-500.0,0.00015373,2]
[418966441,1774681840929,-500.0,0.00015373,2]
[418966442,1774681840938,-500.0,0.00015373,2]
[418966443,1774681840947,-500.0,0.00015373,2]
[418966444,1774681840956,-264.52314394,0.00015373,2]
[418966445,1774681840965,-500.0,0.00015399,2]
[418966446,1774681840974,-357.1493401,0.00015399,2]
[418966447,1774681840983,-517.38379553,0.00015399,2]
[418966448,1774681840992,-393.559,0.00015399,2]
[418966449,1774681841002,-1540.0,0.000154,5]
[418966450,1774681841011,-18854.13991624,0.000154,2]
[418966451,1774681842637,-157.0,0.000114,5]
[418966452,1774681842647,-943.0,0.000154,2]
[418966453,1774681842708,-2373.57801487,0.000154,2]
[418966454,1774681842922,-1667.9218745,0.000154,2]
[418966455,1774681843038,-6411.63456515,0.000154,2]
[418966456,1774681843051,-4940.02806012,0.000154,2]
[418966457,1774681843160,-8781.01325059,0.000154,2]
[418966458,1774681843171,-502.53226963,0.000154,2]
[418966459,1774681843183,-722.8955016,0.000154,2]
[418966464,1774681845435,-502.0,0.000154,2]
[418966468,1774681887381,405.81,0.00012828,2]
[418966470,1774682072575,199.63,0.00012419,2]
[418966471,1774682105075,173.0,0.00013101,2]
[418966472,1774682185090,254.58,7.179e-05,2]
[418966473,1774682185117,531.0,0.00013111,2]
[418966474,1774682185284,254.58,7.557e-05,2]
[418966475,1774682185470,254.58,7.934e-05,2]
[418966476,1774682185825,254.58,8.312e-05,2]
[418966477,1774682185867,254.58,8.69e-05,2]
[418966478,1774682186055,254.58,9.068e-05,2]
[418966479,1774682186257,254.58,9.446e-05,2]
[418966480,1774682186452,254.58,9.824e-05,2]
[418966481,1774682187012,254.58,0.00010201,2]
[418966482,1774682187200,254.58,0.00010579,2]
[418966483,1774682187395,254.58,0.00010957,2]
[418966484,1774682187584,254.58,0.00011335,2]
[418966485,1774682187792,254.58,0.00011713,2]
[418966486,1774682187990,254.58,0.00012091,2]
[418966487,1774682188185,254.58,0.00012468,2]
[418966488,1774682188369,254.58,0.00012846,2]
[418966489,1774682188574,254.58,0.00013224,2]
[418966490,1774682188768,141.15,0.00013602,2]
[418966491,1774682188795,113.43,0.00013602,2]
[418966495,1774682381349,10000.01,0.00013283,2]
[418966496,1774682381374,10000.01,0.00013283,2]
[418966497,1774682381399,834.11,0.00013283,2]
[418966498,1774682400441,1500.0,0.00013283,2]
[418966499,1774682408274,3500.01,7.945e-05,2]
[418966500,1774682408297,398.679839,7.945e-05,2]
[418966501,1774682439991,850.0,0.00012837,2]
[418966502,1774682491782,2000.0,0.00013273,2]
[418966503,1774682545736,531.0,0.00013111,2]
[418966504,1774682613566,-173.0,0.00013701,2]
[418966505,1774682624223,846.37,0.00012745,2]
[418966507,1774682670795,5000.01,0.00013165,2]
[418966508,1774682670817,5000.01,0.00013165,2]
[418966509,1774682670840,8807.64,0.00013165,2]
[418966510,1774682670862,10000.01,0.00013165,2]
[418966511,1774682670884,1187.3,0.00013165,2]
[418966512,1774682686557,1900.0,0.00012426,2]
[418966513,1774682687059,900.0,0.00013544,2]
[418966514,1774682708499,167.28,0.00010545,2]
[418966515,1774682708899,167.28,0.00012302,2]
[418966517,1774682788747,500.0,0.00013606,2]
[418966518,1774682811619,408.26,0.00012922,2]
[418966519,1774682826748,500.0,0.000137,5]
[418966521,1774682865880,457.19,0.00013425,2]
[418966522,1774682865901,2782.81,0.00013425,2]
[418966523,1774682874177,227.18,0.00013423,2]
[418966524,1774682906730,531.0,0.00013111,2]
[418966525,1774682946153,184.6297,0.00013606,2]
[418966527,1774683000536,969.54,0.00012807,2]
[418966528,1774683003578,3845.8403,0.0001312,2]
[418966529,1774683003603,5000.01,0.0001312,2]
[418966530,1774683003626,454.2897,0.0001312,2]
[418966531,1774683030088,166.66,0.00012386,2]
[418966532,1774683030282,166.66,0.00012647,2]
[418966533,1774683030483,166.66,0.00012908,2]
[418966534,1774683030681,166.66,0.00013169,2]
[418966535,1774683031084,166.66,0.00013429,2]
[418966536,1774683031455,166.66,0.0001369,2]
[418966537,1774683031820,-1200.0,0.00013705,2]
[418966538,1774683031831,-300.0,0.00013705,2]
[418966539,1774683031841,-250.0,0.00013706,2]
[418966540,1774683031851,-424.50212326,0.00013706,2]
[418966541,1774683031944,-491.5847794,0.00013706,2]
[418966542,1774683032012,-882.31924771,0.00013706,2]
[418966543,1774683032024,-2600.0,0.00013706,2]
[418966544,1774683032036,-9119.14384963,0.00013706,2]
[418966545,1774683032045,-166.66,0.00013774,2]
[418966546,1774683032055,-160.75,0.00013794,2]
[418966547,1774683032065,-151.0,0.00013796,2]
[418966548,1774683032074,-557.02639085,0.00013798,2]
[418966550,1774683032084,-1000.0,0.000138,5]
[418966551,1774683032104,-245.41415789,0.00013873,2]
[418966552,1774683032115,-500.62783858,0.00013873,2]
[418966553,1774683032124,-500.0,0.00013873,2]
[418966554,1774683032134,-314.67574079,0.00013873,2]
[418966555,1774683032146,-501.23124429,0.00013873,2]
[418966556,1774683032157,-150.0,0.00013879,2]
[418966557,1774683032167,-47321.60160976,0.0001388,2]
[418966558,1774683037811,-764.18970588,0.0001388,2]
[418966559,1774683037880,-35030.0,0.0001388,2]
[418966560,1774683037945,-767.54052114,0.0001388,2]
[418966561,1774683037957,-339.56865201,0.0001388,2]
[418966575,1774683038267,-3460.0,0.0001388,2]
[418966740,1774683040121,-112984.18011121,0.0001388,2]
[418966742,1774683040130,-288.29,0.00013898,2]
[418966744,1774683040140,-1600.0,0.000139,5]
[418966746,1774683040150,-4147.505,0.00013919,2]
[418966748,1774683040159,-78824.4458,0.00013919,2]
[418966750,1774683040168,-750.0,0.00013951,2]
[418966752,1774683040177,-476.53,0.0001397,2]
[418966754,1774683040186,-500.0,0.00013973,2]
[418966756,1774683040196,-2336.2,0.0001398,2]
[418966757,1774683040205,-71457.16,0.0001398,2]
[418966758,1774683040213,-1903.42,0.0001398,2]
[418966760,1774683040222,-254.58,0.0001398,2]
[418966761,1774683040231,-589.62,0.00013999,2]
[418966764,1774683040241,-1947.65,0.00013999,2]
[418966765,1774683040250,-2008.9129,0.00014018,2]
[418966767,1774683040260,-3253.502,0.00014019,2]
[418966769,1774683040269,-188.797,0.00014019,2]
[418966772,1774683040278,-1692.08578811,0.00014019,2]
[418966774,1774683040288,-1000.0,0.00014019,2]
[418966775,1774683040297,-2500.0,0.00014019,2]
[418966778,1774683040307,-557.02639081,0.00014032,2]
[418966779,1774683040316,-167.28,0.0001406,2]
[418966781,1774683040326,-500.0,0.00014118,2]
[418966783,1774683040335,-393.559,0.00014118,2]
[418966785,1774683040346,-500.0,0.00014118,2]
[418966788,1774683040355,-500.0,0.00014118,2]
[418966789,1774683040364,-427.98094545,0.00014118,2]
[418966792,1774683040374,-517.38379553,0.00014118,2]
[418966794,1774683040383,-500.0,0.00014118,2]
[418966796,1774683040392,-357.1493401,0.00014118,2]
[418966798,1774683040401,-250.0,0.00014119,2]
[418966800,1774683040410,-250.0,0.00014119,2]
[418966801,1774683040419,-250.0,0.00014119,2]
[418966803,1774683040428,-250.0,0.00014119,2]
[418966804,1774683040437,-250.0,0.00014119,2]
[418966806,1774683040448,-250.0,0.00014119,2]
[418966808,1774683040458,-250.0,0.00014119,2]
[418966809,1774683040467,-250.0,0.00014119,2]
[418966810,1774683040476,-250.0,0.00014119,2]
[418966811,1774683040486,-250.0,0.00014119,2]
[418966812,1774683040495,-250.0,0.00014119,2]
[418966813,1774683040505,-250.0,0.00014119,2]
[418966814,1774683040514,-220.268761,0.00014119,2]
[418966815,1774683040523,-173.91,0.00014119,2]
[418966816,1774683040532,-10000.0,0.00014119,2]
[418966817,1774683040541,-73694.1538583,0.00014119,2]
[418966818,1774683040553,-641.3636,0.00014119,2]
[418966820,1774683042963,-316.220239,0.00014119,2]
[418966821,1774683042975,-3078.89820875,0.00014119,2]
[418966822,1774683043036,-18154.56898428,0.00014119,2]
[418966823,1774683043103,-327.365286,0.00014119,2]
[418966824,1774683043115,-344.0,0.00014119,2]
[418966850,1774683045629,-28288.47854334,0.00014119,2]
[418966851,1774683045640,-322530.48595739,0.00014119,2]
[418966852,1774683045949,-124101.80940687,0.00014119,2]
[418966853,1774683045961,-24154.92008687,0.00014119,2]
[418966854,1774683046042,-10626.8,0.00014119,2]
[418966855,1774683046053,-12906.22436429,0.00014119,2]
[418966856,1774683046064,-8280.16739608,0.00014119,2]
[418966857,1774683046112,-2493.94804684,0.00014119,2]
[418966875,1774683063167,500.0,0.00013873,2]
[418966876,1774683069649,500.0,0.00013873,2]
[418966877,1774683084049,179.70344844,0.00013879,2]
[418966878,1774683084081,500.0,0.00013879,2]
[418966879,1774683084257,500.0,0.00013879,2]
[418966880,1774683084286,500.0,0.00013879,2]
[418966881,1774683084315,500.0,0.00013879,2]
[418966882,1774683084349,500.0,0.00013879,2]
[418966883,1774683086085,159.61,0.0001386,2]
[418966884,1774683088227,1160.69655156,0.00013837,2]
[418966885,1774683088254,1442.10544844,0.00013837,2]
[418966886,1774683088296,151.037,0.00013837,2]
[418966887,1774683128154,3406.86755156,0.0001388,2]
[418966888,1774683128184,5000.01,0.0001388,2]
[418966889,1774683185108,318.97,0.00013545,2]
[418966896,1774683219927,302.29,0.00011507,2]
[418966897,1774683235603,-500.0,0.00013879,2]
[418966898,1774683235634,-357.1493401,0.00013879,2]
[418966899,1774683235669,-500.0,0.00013879,2]
[418966900,1774683235712,-500.0,0.00013879,2]
[418966901,1774683235746,-500.0,0.00013879,2]
[418966902,1774683235781,-235.33851087,0.00013879,2]
[418966903,1774683235815,-500.0,0.00013879,2]
[418966904,1774683235844,-517.38379553,0.00013879,2]
[418966905,1774683235874,-646.61228745,0.00013879,2]
[418966906,1774683235903,-500.0,0.00013879,2]
[418966907,1774683236139,-500.0,0.00013879,2]
[418966908,1774683236186,-500.0,0.00013879,2]
[418966909,1774683236232,-353.65080211,0.00013879,2]
[418966910,1774683236277,-500.0,0.00013879,2]
[418966911,1774683236330,-500.0,0.00013879,2]
[418966912,1774683236377,-198.24572461,0.00013879,2]
[418966913,1774683236424,-300.0,0.00013879,2]
[418966914,1774683236625,-150.0,0.00013879,2]
[418966915,1774683237423,-9880.72754441,0.0001388,2]
[418966916,1774683237458,-10000.01,0.0001388,2]
[418966917,1774683237505,-10000.01,0.0001388,2]
[418966918,1774683237552,-10000.01,0.0001388,2]
[418966919,1774683237591,-10000.01,0.0001388,2]
[418966920,1774683237626,-10000.01,0.0001388,2]
[418966921,1774683237672,-10000.01,0.0001388,2]
[418966922,1774683237717,-10000.01,0.0001388,2]
[418966923,1774683237751,-10000.01,0.0001388,2]
[418966924,1774683237796,-10000.01,0.0001388,2]
[418966925,1774683237829,-10000.01,0.0001388,2]
[418966926,1774683237873,-10000.01,0.0001388,2]
[418966927,1774683237911,-10000.01,0.0001388,2]
[418966928,1774683243085,-300.0,0.00013879,2]
[418966929,1774683243174,-9400.01,0.0001388,2]
[418966930,1774683243265,-10000.01,0.0001388,2]
[418966931,1774683248149,732.37,0.00011244,2]
[418966932,1774683248649,500.0,0.00012181,2]
[418966933,1774683249361,258.37,0.000133,2]
[418966934,1774683261457,-10000.01,0.0001388,2]
[418966935,1774683264705,-10000.01,0.0001388,2]
[418966936,1774683264864,-10000.01,0.0001388,2]
[418966937,1774683267765,-172.39122167,0.00013879,2]
[418966938,1774683267815,-250.67439072,0.00013879,2]
[418966939,1774683267867,-150.0,0.00013879,2]
[418966940,1774683268033,-8853.87877522,0.0001388,2]
[418966941,1774683310542,800.0,0.0001357,2]
[418966942,1774683322264,1692.08578811,0.0001378,2]
[418966943,1774683322762,200.0,0.000136,2]
[418966947,1774683366545,183.34503366,0.0001378,2]
[418966948,1774683370179,633.83917823,0.0001378,2]
[418966949,1774683370203,1017.98185021,0.0001378,2]
[418966950,1774683374682,600.0,0.00012856,2]
[418966951,1774683423623,501.32375181,0.0001378,2]
[418966953,1774683472959,274.94588649,0.00013841,2]
[418966954,1774683473963,436.54907807,0.00013841,2]
[418966955,1774683492561,2169.20943342,0.0001378,2]
[418966956,1774683492585,330.79056658,0.0001378,2]
[418966959,1774683597498,163.25,0.00013546,2]
[418966965,1774683621429,381.6,0.00012711,2]
[418966966,1774683621498,4124.36943342,0.0001378,2]
[418966967,1774683621521,23.13556658,0.0001378,2]
[418966968,1774683628019,4976.87443342,0.0001378,2]
[418966969,1774683628043,5000.01,0.0001378,2]
[418966970,1774683650056,500.0,0.000135,2]
[418966971,1774683746754,390.08,0.00012718,2]
[418966972,1774683810755,379.26,0.00011565,2]
[418966973,1774683811483,369.36,0.00012631,2]
[418966974,1774683869743,-294.68296071,0.00013778,2]
[418966975,1774683869785,-300.0,0.00013779,2]
[418966976,1774683869827,-150.0,0.00013779,2]
[418966977,1774683869869,-300.0,0.00013779,2]
[418966978,1774683870043,-7910.64407858,0.0001378,2]
[418966979,1774683870096,-10000.01,0.0001378,2]
[418966980,1774683878611,-10000.01,0.0001378,2]
[418966981,1774683878743,-10000.01,0.0001378,2]
[418966982,1774683898698,150.0,0.00013711,2]
[418966983,1774683902524,150.0,0.00013711,2]
[418966984,1774683906344,150.0,0.00013711,2]
[418966985,1774683924712,208.23513688,0.00013679,2]
[418966986,1774683930746,208.23513688,0.0001373,2]
[418966987,1774683938675,2494.83972624,0.00013111,2]
[418966988,1774683938697,5000.01,0.00013111,2]
[418966989,1774683938719,1091.66027376,0.00013111,2]
[418966990,1774683956969,539.0,0.00013111,2]
[418966991,1774683967004,158.0,0.00013769,2]
[418966992,1774683969169,160.0,0.00013769,2]
[418966993,1774683994917,391.31,0.00012617,2]
[418966994,1774684025527,158.0,0.00013769,2]
[418966995,1774684028160,161.0,0.00013769,2]
[418966997,1774684041601,800.0,0.000137,5]
[418966998,1774684058115,726.76,0.00012199,2]
[418967002,1774684121555,718.71,0.00011416,2]
[418967003,1774684146199,-158.0,0.00013711,3]
[418967004,1774684146227,-161.0,0.00013711,3]
[418967005,1774684150413,158.0,0.00013711,3]
[418967007,1774684161409,-154.02,0.00013757,2]
[418967008,1774684161438,-151.0,0.00013759,2]
[418967009,1774684161467,-300.0,0.00013778,2]
[418967010,1774684161496,-1200.0,0.00013779,2]
[418967011,1774684161526,-300.0,0.00013779,2]
[418967012,1774684161559,-150.0,0.00013779,2]
[418967013,1774684161591,-189.97,0.00013779,2]
[418967014,1774684161997,-110.03,0.00013779,2]
[418967015,1774684162026,-2007.6005,0.0001378,2]
[418967016,1774684162114,-852.505,0.0001378,2]
[418967017,1774684162162,-1705.01,0.0001378,2]
[418967018,1774684162206,-1589.99,0.0001378,2]
[418967019,1774684173466,-1476.2845,0.0001378,2]
[418967020,1774684173550,-5000.01,0.0001378,2]
[418967021,1774684173715,-5000.01,0.0001378,2]
[418967022,1774684173859,-5000.01,0.0001378,2]
[418967023,1774684173962,-5000.01,0.0001378,2]
[418967024,1774684174080,-5000.01,0.0001378,2]
[418967025,1774684174184,-5000.01,0.0001378,2]
[418967026,1774684174288,-5000.01,0.0001378,2]
[418967027,1774684202170,150.0,0.00013711,2]
[418967028,1774684231953,-935.46,0.00013779,2]
[418967029,1774684231965,-264.54,0.00013779,2]
[418967030,1774684231974,-300.0,0.00013779,2]
[418967031,1774684231983,-300.0,0.00013779,2]
[418967032,1774684231993,-74.01,0.0001378,2]
[418967033,1774684232026,-1350.31,0.0001378,2]
[418967034,1774684232038,-60683.7016,0.0001378,2]
[418967035,1774684232047,-2500.0,0.0001378,2]
[418967036,1774684232056,-6767.8194,0.0001378,2]
[418967037,1774684232065,-182.0,0.0001378,3]
[418967038,1774684232074,-158.0,0.0001378,3]
[418967039,1774684232083,-1522.87720938,0.0001378,2]
[418967040,1774684232093,-1445.34339985,0.0001378,2]
[418967041,1774684232102,-1600.0,0.000138,5]
[418967042,1774684232111,-315.13,0.00013822,2]
[418967043,1774684232121,-159.0980215,0.00013866,2]
[418967044,1774684232130,-388.55,0.00013872,2]
[418967045,1774684232139,-260.36077702,0.00013873,2]
[418967046,1774684232149,-451.07975321,0.00013873,2]
[418967047,1774684232158,-502.12815778,0.00013873,2]
[418967048,1774684232168,-500.0,0.00013873,2]
[418967049,1774684232177,-500.0,0.00013873,2]
[418967050,1774684232187,-167.62270379,0.00013873,2]
[418967051,1774684232195,-500.0,0.00013873,2]
[418967052,1774684232204,-164.27795554,0.00013873,2]
[418967053,1774684232214,-500.0,0.00013873,2]
[418967054,1774684232223,-248.37094565,0.00013879,2]
[418967055,1774684232237,-482.84251204,0.00013879,2]
[418967056,1774684232246,-261.51675579,0.00013879,2]
[418967057,1774684232256,-500.0,0.00013879,2]
[418967058,1774684232265,-500.0,0.00013879,2]
[418967059,1774684232274,-356.56673046,0.00013879,2]
[418967061,1774684232284,-155.914,0.00013879,2]
[418967062,1774684232294,-500.0,0.00013879,2]
[418967063,1774684232303,-393.559,0.00013879,2]
[418967065,1774684232312,-118721.2600557,0.0001388,2]
[418967067,1774684232324,-14758.16931429,0.0001388,2]
[418967070,1774684232342,-60533.0,0.0001388,2]
[418967071,1774684234113,378.71998973,0.0001368,2]
[418967072,1774684235643,4471.29001027,0.0001368,2]
[418967076,1774684240253,-21803.79696029,0.0001368,2]
[418967077,1774684240265,-2090.40897658,0.0001368,2]
[418967078,1774684240276,-857.81402166,0.0001368,2]
[418967079,1774684240288,-373.5644,0.0001368,2]
[418967080,1774684240299,-395.472,0.0001368,2]
[418967081,1774684240357,-18385.88561907,0.0001368,2]
[418967082,1774684240714,-267227.4105793,0.0001368,2]
[418967083,1774684241036,-132727.84732145,0.0001368,2]
[418967084,1774684241048,-78444.81333665,0.0001368,2]
[418967085,1774684242548,-6951.36107524,0.0001368,2]
[418967086,1774684242560,-38002.157581,0.0001368,2]
[418967087,1774684242612,-678.88634017,0.0001368,2]
[418967100,1774684242792,-400.0,0.0001368,2]
[418967101,1774684242854,-823277.47607832,0.0001368,2]
[418967102,1774684242864,-411818.16572168,0.0001388,2]
[418967140,1774684243272,-2432.6275441,0.0001388,2]
[418967148,1774684243334,-9449.51153875,0.0001388,2]
[418967296,1774684246902,2035.04,0.0001303,2]
[418967297,1774684247421,1820.9,0.00013198,2]
[418967301,1774684314998,5000.01,0.00012063,2]
[418967302,1774684386494,758.54,0.00011428,2]
[418967303,1774684419726,-158.0,0.00012063,3]
[418967304,1774684419771,-161.0,0.00012063,3]
[418967305,1774684419818,-104.59,0.00012063,2]
[418967306,1774684419862,-4152.83,0.00012065,2]
[418967307,1774684420001,-847.17,0.00012065,2]
[418967308,1774684422574,-3350.0,0.00012066,2]
[418967309,1774684422647,-3300.01,0.00012273,2]
[418967310,1774684431682,-1693.04,0.00012273,2]
[418967311,1774684431728,-1213.93,0.00012301,2]
[418967312,1774684431804,-4186.07,0.00012301,2]
[418967313,1774684447869,157.0,0.00012454,2]
[418967314,1774684448820,520.38,0.00011929,2]
[418967315,1774684450443,160.0,0.00012454,2]
[418967316,1774684507750,157.0,0.00012454,2]
[418967317,1774684510440,160.0,0.00012454,2]
[418967318,1774684510964,178.0,0.00012454,2]
[418967319,1774684525641,382.98448656,0.00012404,2]
[418967320,1774684567444,158.0,0.00012454,2]
[418967321,1774684573775,973.04,0.00011681,2]
[418967322,1774684624865,158.0,0.00012454,2]
[418967323,1774684653394,200.0,0.000122,2]
[418967324,1774684663893,1795.60551344,0.00012279,2]
[418967325,1774684663933,5000.01,0.00012279,2]
[418967326,1774684715286,-300.0,0.00012278,2]
[418967327,1774684715380,-9400.01,0.00012279,2]
[418967328,1774684715572,-1357.18448656,0.00012279,2]
[418967329,1774684715629,-158.0,0.00012454,3]
[418967330,1774684715685,-1200.0,0.00012464,2]
[418967331,1774684715866,-5000.0,0.00012464,2]
[418967332,1774684715968,-4569.64102688,0.00012465,2]
[418967333,1774684716025,-1840.53897312,0.00012465,2]
[418967334,1774684716084,-300.0,0.00012503,2]
[418967335,1774684716139,-300.0,0.00012504,2]
[418967336,1774684716195,-1200.0,0.00012504,2]
[418967337,1774684716414,-4421.94,0.00012505,2]
[418967338,1774684716624,-1156.13,0.00012505,2]
[418967339,1774684716678,-3260.0,0.00012551,2]
[418967340,1774684716815,-615.07205376,0.00012584,2]
[418967341,1774684716856,-1684.92794624,0.00012584,2]
[418967342,1774684716868,-382.98448655,0.00012639,2]
[418967343,1774684716879,-150.0,0.000128,2]
[418967344,1774684716890,-1042.08756721,0.000128,2]
[418967345,1774684716931,-135.14243279,0.000128,2]
[418967346,1774684716942,-1032.60756721,0.000128,2]
[418967347,1774684718094,-1303.59243279,0.000128,2]
[418967348,1774684718151,-3151.11513442,0.00012828,2]
[418967349,1774684718241,-1090.59486558,0.00012828,2]
[418967350,1774684718497,-1901.82,0.00012833,2]
[418967351,1774684718542,-382.98448655,0.00012873,2]
[418967352,1774684718589,-501.32375181,0.00012873,2]
[418967353,1774684718634,-150.0,0.00012937,2]
[418967354,1774684718679,-500.0,0.00012938,2]
[418967355,1774684718724,-500.0,0.00012938,2]
[418967356,1774684718766,-179.70344844,0.00012938,2]
[418967357,1774684718809,-500.0,0.00012938,2]
[418967358,1774684718856,-268.3466264,0.00012938,2]
[418967359,1774684719175,-231.6533736,0.00012938,2]
[418967360,1774684721258,-500.0,0.00012938,2]
[418967361,1774684721308,-2200.0,0.00012939,2]
[418967362,1774684721425,-4600.01,0.00012939,2]
[418967363,1774684721592,-2906.71,0.00012939,2]
[418967364,1774684721639,-1903.42,0.00012939,2]
[418967365,1774684721756,-379.75,0.00012939,2]
[418967366,1774684721947,-10000.01,0.00012939,2]
[418967367,1774684722204,-10000.01,0.00012939,2]
[418967368,1774684722429,-10000.01,0.00012939,2]
[418967369,1774684748458,3050.660081,7.945e-05,2]
[418967370,1774684757416,1200.0,0.00012467,2]
[418967371,1774684757920,749.349919,0.0001266,2]
[418967372,1774684757961,198.800081,0.0001266,2]
[418967373,1774684774342,721.9,0.00012554,2]
[418967374,1774684786966,3658.78,0.00012559,2]
[418967375,1774684806915,169.0,0.00012928,2]
[418967378,1774684809308,158.0,0.00012928,2]
[418967379,1774684829029,93.529919,0.00012838,2]
[418967380,1774684829069,89.74842431,0.00012838,2]
[418967381,1774684876375,166.66,0.00012919,2]
[418967383,1774684946935,210.88,0.00012551,2]
[418967384,1774684947235,250.64,0.00012054,2]
[418967385,1774684991353,1947.65,0.00012526,2]
[418967386,1774685018862,1757.11,0.00012501,2]
[418967387,1774685023639,-300.0,0.00012937,2]
[418967388,1774685023693,-1200.0,0.00012938,2]
[418967389,1774685023746,-300.0,0.00012938,2]
[418967390,1774685023799,-309.0,0.00012938,2]
[418967391,1774685023851,-300.0,0.00012938,2]
[418967392,1774685023904,-150.0,0.00012938,2]
[418967393,1774685024197,-4882.01,0.00012939,2]
[418967394,1774685024252,-117.99,0.00012939,2]
[418967395,1774685037218,1511.17,6.303e-05,2]
[418967396,1774685037421,1511.17,6.635e-05,2]
[418967397,1774685037626,1511.17,6.967e-05,2]
[418967398,1774685037812,466.5,7.299e-05,2]
[418967399,1774685037853,1044.67,7.299e-05,2]
[418967400,1774685037999,1511.17,7.63e-05,2]
[418967401,1774685038189,1511.17,7.962e-05,2]
[418967402,1774685038378,1511.17,8.294e-05,2]
[418967403,1774685038573,1511.17,8.626e-05,2]
[418967404,1774685038762,1511.17,8.958e-05,2]
[418967405,1774685038951,1163.51,9.289e-05,2]
[418967406,1774685038994,347.66,9.289e-05,2]
[418967407,1774685039147,1511.17,9.621e-05,2]
[418967408,1774685039358,1511.17,9.953e-05,2]
[418967409,1774685039557,1511.17,0.00010285,2]
[418967410,1774685039760,1511.17,0.00010616,2]
[418967411,1774685039946,1511.17,0.00010948,2]
[418967412,1774685040142,1511.17,0.0001128,2]
[418967413,1774685040328,1511.17,0.00011612,2]
[418967414,1774685040514,1511.17,0.00011943,2]
[418967415,1774685040707,466.5,0.00012275,2]
[418967416,1774685040751,1044.67,0.00012275,2]
[418967417,1774685041247,1051.83,0.00012607,2]
[418967418,1774685042880,-459.34,0.00012607,2]
[418967419,1774685043107,4081.33,0.0001279,2]
[418967420,1774685073118,5000.01,0.00012635,2]
[418967421,1774685138831,-706.5417064,0.00012635,2]
[418967422,1774685138928,-1802.44075415,0.00012635,2]
[418967423,1774685197835,600.0,0.00011969,2]
[418967424,1774685198147,691.84,0.00012304,2]
[418967425,1774685198666,830.0,0.00012497,2]
[418967426,1774685235239,200.0,0.00012427,2]
[418967427,1774685239811,156.33,0.00012625,2]
[418967428,1774685258152,302.35481977,8e-05,2]
[418967431,1774685268345,2219.48518023,0.00011483,2]
[418967432,1774685268390,200.51481977,0.00011483,2]